[Event "Early Titled Tuesday Blitz | February 8 2022"]
[White "Goryachkina, Aleksandra"]
[Black "Lucas, Arthur"]
[WhiteFideId "4147103"]
[BlackFideId "26093073"]
[WhiteElo "2426"]
[BlackElo "2129"]
[Result "1-0"]
[Round "05"]
[TimeControl "180+1"]
[Date "2022.02.08"]
[WhiteClock "0:00:37"]
[BlackClock "0:00:18"]

1. e4 {[%clk 0:02:59]}  c5 {[%clk 0:02:57]} 2. Nf3 {[%clk 0:02:58]}  e6 {[%clk 0:02:57]} 3. c3 {[%clk 0:02:58]}  Nf6 {[%clk 0:02:56]} 4. e5 {[%clk 0:02:58]}  Nd5 {[%clk 0:02:57]} 5. Bc4 {[%clk 0:02:58]}  Nb6 {[%clk 0:02:53]} 6. Bb3 {[%clk 0:02:57]}  c4 {[%clk 0:02:53]} 7. Bc2 {[%clk 0:02:57]}  d6 {[%clk 0:02:53]} 8. O-O {[%clk 0:02:45]}  Nc6 {[%clk 0:02:52]} 9. exd6 {[%clk 0:02:42]}  Bxd6 {[%clk 0:02:53]} 10. d3 {[%clk 0:02:39]}  cxd3 {[%clk 0:02:38]} 11. Qxd3 {[%clk 0:02:39]}  Be7 {[%clk 0:02:28]} 12. Qe4 {[%clk 0:02:36]}  Qd5 {[%clk 0:02:28]} 13. Qg4 {[%clk 0:02:30]}  g6 {[%clk 0:02:02]} 14. Rd1 {[%clk 0:02:27]}  Qh5 {[%clk 0:01:45]} 15. Qxh5 {[%clk 0:02:18]}  gxh5 {[%clk 0:01:46]} 16. Nbd2 {[%clk 0:02:13]}  Bd7 {[%clk 0:01:31]} 17. Ne4 {[%clk 0:02:13]}  O-O-O {[%clk 0:01:28]} 18. Bg5 {[%clk 0:02:12]}  Rdf8 {[%clk 0:00:53]} 19. Bxe7 {[%clk 0:01:49]}  Nxe7 {[%clk 0:00:54]} 20. Nf6 {[%clk 0:01:19]}  Bc6 {[%clk 0:00:48]} 21. Ne5 {[%clk 0:01:16]}  h4 {[%clk 0:00:37]} 22. Nxh7 {[%clk 0:01:04]}  Rfg8 {[%clk 0:00:34]} 23. Nxc6 {[%clk 0:01:01]}  Nxc6 {[%clk 0:00:31]} 24. Nf6 {[%clk 0:01:00]}  Rg7 {[%clk 0:00:27]} 25. h3 {[%clk 0:00:50]}  Rh6 {[%clk 0:00:25]} 26. Ng4 {[%clk 0:00:50]}  Rh8 {[%clk 0:00:21]} 27. Nf6 {[%clk 0:00:45]}  Rh6 {[%clk 0:00:21]} 28. Ne8 {[%clk 0:00:42]}  Rg5 {[%clk 0:00:20]} 29. Nd6+ {[%clk 0:00:42]}  Kc7 {[%clk 0:00:20]} 30. Nxf7 {[%clk 0:00:43]}  Rhh5 {[%clk 0:00:18]} 31. Nxg5 {[%clk 0:00:42]}  Rxg5 {[%clk 0:00:19]} 32. Kf1 {[%clk 0:00:42]}  Nc4 {[%clk 0:00:19]} 33. b3 {[%clk 0:00:40]}  N4e5 {[%clk 0:00:19]} 34. Be4 {[%clk 0:00:40]}  Ne7 {[%clk 0:00:19]} 35. Re1 {[%clk 0:00:39]}  Ng8 {[%clk 0:00:18]} 36. f4 {[%clk 0:00:37]} 1-0


[Site "https://www.chess.com"]

[Event "Early Titled Tuesday Blitz | February 8 2022"]
[White "Gunina, Valentina"]
[Black "Przybylski, Wojciech"]
[WhiteFideId "4167570"]
[BlackFideId "1117599"]
[WhiteElo "2465"]
[BlackElo "2133"]
[Result "1-0"]
[Round "05"]
[TimeControl "180+1"]
[Date "2022.02.08"]
[WhiteClock "0:00:38"]
[BlackClock "0:00:01"]

1. d4 {[%clk 0:03:00]}  Nf6 {[%clk 0:02:52]} 2. c4 {[%clk 0:03:00]}  e6 {[%clk 0:02:52]} 3. Nf3 {[%clk 0:03:00]}  b6 {[%clk 0:02:51]} 4. g3 {[%clk 0:03:00]}  Ba6 {[%clk 0:02:50]} 5. b3 {[%clk 0:02:59]}  Be7 {[%clk 0:02:50]} 6. Bg2 {[%clk 0:02:59]}  O-O {[%clk 0:02:50]} 7. O-O {[%clk 0:03:00]}  d5 {[%clk 0:02:50]} 8. Ne5 {[%clk 0:02:58]}  c6 {[%clk 0:02:49]} 9. Nc3 {[%clk 0:02:56]}  Nfd7 {[%clk 0:02:48]} 10. Bf4 {[%clk 0:02:56]}  Nxe5 {[%clk 0:02:44]} 11. Bxe5 {[%clk 0:02:51]}  Nd7 {[%clk 0:02:43]} 12. Bf4 {[%clk 0:02:32]}  Rc8 {[%clk 0:02:25]} 13. cxd5 {[%clk 0:02:26]}  cxd5 {[%clk 0:02:25]} 14. Rc1 {[%clk 0:02:26]}  Bb4 {[%clk 0:02:16]} 15. Nb1 {[%clk 0:02:19]}  Rxc1 {[%clk 0:02:07]} 16. Bxc1 {[%clk 0:02:19]}  Qc7 {[%clk 0:02:06]} 17. Bd2 {[%clk 0:02:19]}  Bd6 {[%clk 0:02:04]} 18. Re1 {[%clk 0:02:18]}  Nf6 {[%clk 0:01:59]} 19. Nc3 {[%clk 0:02:17]}  Rc8 {[%clk 0:01:56]} 20. a4 {[%clk 0:02:10]}  Qd7 {[%clk 0:01:45]} 21. e3 {[%clk 0:02:03]}  Bb4 {[%clk 0:01:19]} 22. Ne4 {[%clk 0:02:02]}  dxe4 {[%clk 0:00:44]} 23. Bxb4 {[%clk 0:02:01]}  Bd3 {[%clk 0:00:44]} 24. Qa1 {[%clk 0:01:48]}  Nd5 {[%clk 0:00:42]} 25. Ba3 {[%clk 0:01:45]}  Rc2 {[%clk 0:00:41]} 26. Rc1 {[%clk 0:01:35]}  Qc6 {[%clk 0:00:40]} 27. h4 {[%clk 0:01:04]}  f5 {[%clk 0:00:39]} 28. a5 {[%clk 0:00:56]}  Qb5 {[%clk 0:00:19]} 29. axb6 {[%clk 0:00:54]}  axb6 {[%clk 0:00:19]} 30. Bd6 {[%clk 0:00:48]}  Qc6 {[%clk 0:00:17]} 31. Rxc2 {[%clk 0:00:44]}  Bxc2 {[%clk 0:00:16]} 32. Be5 {[%clk 0:00:44]}  Bxb3 {[%clk 0:00:10]} 33. Qa7 {[%clk 0:00:43]}  Nf6 {[%clk 0:00:11]} 34. Bxf6 {[%clk 0:00:43]}  gxf6 {[%clk 0:00:11]} 35. h5 {[%clk 0:00:43]}  Qe8 {[%clk 0:00:02]} 36. h6 {[%clk 0:00:43]}  Qf7 {[%clk 0:00:02]} 37. Qb8+ {[%clk 0:00:42]}  Qf8 {[%clk 0:00:02]} 38. Qxb6 {[%clk 0:00:42]}  Bd5 {[%clk 0:00:02]} 39. g4 {[%clk 0:00:39]}  Qxh6 {[%clk 0:00:01]} 40. gxf5 {[%clk 0:00:38]} 1-0


[Site "https://www.chess.com"]

[Event "Early Titled Tuesday Blitz | February 8 2022"]
[White "Hamley, Ryan"]
[Black "Avila Pavas, Santiago"]
[WhiteFideId "30959497"]
[BlackFideId "4437128"]
[WhiteElo "2484"]
[BlackElo "2242"]
[Result "0-1"]
[Round "05"]
[TimeControl "180+1"]
[Date "2022.02.08"]
[WhiteClock "0:00:03"]
[BlackClock "0:01:17"]

1. d4 {[%clk 0:02:59]}  Nf6 {[%clk 0:03:00]} 2. c4 {[%clk 0:02:59]}  c5 {[%clk 0:03:00]} 3. d5 {[%clk 0:02:53]}  b5 {[%clk 0:03:00]} 4. cxb5 {[%clk 0:02:48]}  a6 {[%clk 0:03:01]} 5. bxa6 {[%clk 0:02:48]}  g6 {[%clk 0:03:01]} 6. Nc3 {[%clk 0:02:41]}  Bg7 {[%clk 0:03:01]} 7. e4 {[%clk 0:02:41]}  O-O {[%clk 0:03:02]} 8. Nf3 {[%clk 0:02:41]}  Qa5 {[%clk 0:03:02]} 9. Bd2 {[%clk 0:02:40]}  Bxa6 {[%clk 0:03:02]} 10. Bxa6 {[%clk 0:02:38]}  Qxa6 {[%clk 0:03:03]} 11. Qe2 {[%clk 0:02:39]}  e6 {[%clk 0:03:04]} 12. Qxa6 {[%clk 0:02:29]}  Nxa6 {[%clk 0:03:05]} 13. O-O-O {[%clk 0:02:29]}  exd5 {[%clk 0:03:00]} 14. exd5 {[%clk 0:02:28]}  Nb4 {[%clk 0:03:00]} 15. Be3 {[%clk 0:01:38]}  Ng4 {[%clk 0:02:44]} 16. a3 {[%clk 0:01:28]}  Nxe3 {[%clk 0:02:35]} 17. fxe3 {[%clk 0:01:29]}  Na6 {[%clk 0:02:20]} 18. Kc2 {[%clk 0:01:27]}  Nc7 {[%clk 0:02:19]} 19. Rhe1 {[%clk 0:01:25]}  Rfb8 {[%clk 0:02:19]} 20. e4 {[%clk 0:01:22]}  Nb5 {[%clk 0:02:02]} 21. Nxb5 {[%clk 0:00:57]}  Rxb5 {[%clk 0:02:03]} 22. Rb1 {[%clk 0:00:53]}  d6 {[%clk 0:02:02]} 23. Nd2 {[%clk 0:00:50]}  Ra4 {[%clk 0:02:01]} 24. Re2 {[%clk 0:00:34]}  Be5 {[%clk 0:01:55]} 25. h3 {[%clk 0:00:29]}  Rb8 {[%clk 0:01:46]} 26. b3 {[%clk 0:00:18]}  Rxa3 {[%clk 0:01:45]} 27. Nc4 {[%clk 0:00:19]}  Ra2+ {[%clk 0:01:43]} 28. Kd3 {[%clk 0:00:19]}  Ra1 {[%clk 0:01:21]} 29. Rxa1 {[%clk 0:00:16]}  Rxb3+ {[%clk 0:01:22]} 30. Kc2 {[%clk 0:00:12]}  Rc3+ {[%clk 0:01:23]} 31. Kd2 {[%clk 0:00:11]}  Rxc4 {[%clk 0:01:24]} 32. Ra8+ {[%clk 0:00:11]}  Kg7 {[%clk 0:01:24]} 33. Ra3 {[%clk 0:00:09]}  Rb4 {[%clk 0:01:24]} 34. Kc2 {[%clk 0:00:06]}  Rb2+ {[%clk 0:01:24]} 35. Kd1 {[%clk 0:00:06]}  Rb1+ {[%clk 0:01:24]} 36. Kc2 {[%clk 0:00:06]}  Rb4 {[%clk 0:01:24]} 37. g4 {[%clk 0:00:05]}  h6 {[%clk 0:01:24]} 38. Rf3 {[%clk 0:00:05]}  Rd4 {[%clk 0:01:21]} 39. Ref2 {[%clk 0:00:05]}  f6 {[%clk 0:01:22]} 40. Re2 {[%clk 0:00:05]}  Rb4 {[%clk 0:01:19]} 41. Rb3 {[%clk 0:00:05]}  Ra4 {[%clk 0:01:19]} 42. Rb7+ {[%clk 0:00:06]}  Kf8 {[%clk 0:01:20]} 43. Rb3 {[%clk 0:00:06]}  Ra2+ {[%clk 0:01:20]} 44. Kd1 {[%clk 0:00:07]}  Ra1+ {[%clk 0:01:20]} 45. Kc2 {[%clk 0:00:07]}  Ra2+ {[%clk 0:01:21]} 46. Kd1 {[%clk 0:00:08]}  Ra4 {[%clk 0:01:21]} 47. Rb7 {[%clk 0:00:07]}  h5 {[%clk 0:01:18]} 48. gxh5 {[%clk 0:00:07]}  gxh5 {[%clk 0:01:19]} 49. Rh7 {[%clk 0:00:05]}  Ra1+ {[%clk 0:01:18]} 50. Kd2 {[%clk 0:00:05]}  c4 {[%clk 0:01:18]} 51. Rc7 {[%clk 0:00:04]}  c3+ {[%clk 0:01:17]} 52. Kd3 {[%clk 0:00:04]}  Rd1+ {[%clk 0:01:15]} 53. Kc2 {[%clk 0:00:05]}  Ra1 {[%clk 0:01:16]} 54. Rg2 {[%clk 0:00:03]}  Ra2+ {[%clk 0:01:16]} 55. Kd3 {[%clk 0:00:03]}  Rxg2 {[%clk 0:01:17]} 0-1


[Site "https://www.chess.com"]

[Event "Early Titled Tuesday Blitz | February 8 2022"]
[White "Dronavalli, Harika"]
[Black "Jain Kashish Manoj"]
[WhiteFideId "5015197"]
[BlackFideId "35081098"]
[WhiteElo "2382"]
[BlackElo "1681"]
[Result "1-0"]
[Round "05"]
[TimeControl "180+1"]
[Date "2022.02.08"]
[WhiteClock "0:00:52"]
[BlackClock "0:00:02"]

1. d4 {[%clk 0:03:00]}  Nf6 {[%clk 0:02:57]} 2. c4 {[%clk 0:03:01]}  g6 {[%clk 0:02:56]} 3. g3 {[%clk 0:03:00]}  Bg7 {[%clk 0:02:55]} 4. Bg2 {[%clk 0:03:00]}  O-O {[%clk 0:02:56]} 5. Nc3 {[%clk 0:03:01]}  d6 {[%clk 0:02:57]} 6. Nf3 {[%clk 0:02:59]}  Nc6 {[%clk 0:02:58]} 7. O-O {[%clk 0:02:58]}  a6 {[%clk 0:02:55]} 8. b3 {[%clk 0:02:58]}  Rb8 {[%clk 0:02:54]} 9. Bb2 {[%clk 0:02:46]}  b5 {[%clk 0:02:52]} 10. cxb5 {[%clk 0:02:40]}  axb5 {[%clk 0:02:53]} 11. Rc1 {[%clk 0:02:37]}  b4 {[%clk 0:02:46]} 12. Na4 {[%clk 0:02:37]}  Na5 {[%clk 0:02:47]} 13. Nd2 {[%clk 0:02:33]}  Bd7 {[%clk 0:02:45]} 14. e4 {[%clk 0:02:29]}  Bxa4 {[%clk 0:02:36]} 15. bxa4 {[%clk 0:02:29]}  c6 {[%clk 0:02:36]} 16. Nb3 {[%clk 0:02:22]}  d5 {[%clk 0:01:32]} 17. e5 {[%clk 0:02:16]}  Nd7 {[%clk 0:01:33]} 18. e6 {[%clk 0:01:42]}  Nc4 {[%clk 0:00:59]} 19. Ba1 {[%clk 0:01:27]}  fxe6 {[%clk 0:00:54]} 20. Qe2 {[%clk 0:01:19]}  Rf6 {[%clk 0:00:18]} 21. f4 {[%clk 0:01:16]}  Qc7 {[%clk 0:00:11]} 22. Bh3 {[%clk 0:01:10]}  Qd6 {[%clk 0:00:06]} 23. Rfe1 {[%clk 0:01:08]}  Kh8 {[%clk 0:00:03]} 24. Bxe6 {[%clk 0:01:04]}  Rbf8 {[%clk 0:00:02]} 25. Bxd7 {[%clk 0:00:58]}  Qxd7 {[%clk 0:00:03]} 26. Nc5 {[%clk 0:00:58]}  Qh3 {[%clk 0:00:02]} 27. Qg2 {[%clk 0:00:52]} 1-0


[Site "https://www.chess.com"]

[Event "Early Titled Tuesday Blitz | February 8 2022"]
[White "Hess, Robert"]
[Black "Nazari, Arad"]
[WhiteFideId "2022036"]
[BlackFideId "12577324"]
[WhiteElo "2557"]
[BlackElo "2120"]
[Result "1-0"]
[Round "05"]
[TimeControl "180+1"]
[Date "2022.02.08"]
[WhiteClock "0:00:04"]
[BlackClock "0:00:02"]

1. b3 {[%clk 0:03:00]}  Nf6 {[%clk 0:02:59]} 2. Bb2 {[%clk 0:03:00]}  g6 {[%clk 0:03:00]} 3. d3 {[%clk 0:02:59]}  Bg7 {[%clk 0:03:00]} 4. Nd2 {[%clk 0:02:59]}  O-O {[%clk 0:03:01]} 5. e3 {[%clk 0:03:00]}  d5 {[%clk 0:03:01]} 6. Ne2 {[%clk 0:03:01]}  c5 {[%clk 0:03:02]} 7. h3 {[%clk 0:03:01]}  Nc6 {[%clk 0:03:02]} 8. g4 {[%clk 0:02:59]}  e5 {[%clk 0:03:02]} 9. Bg2 {[%clk 0:02:59]}  Be6 {[%clk 0:03:00]} 10. a3 {[%clk 0:02:45]}  d4 {[%clk 0:02:59]} 11. Bxc6 {[%clk 0:02:42]}  bxc6 {[%clk 0:02:58]} 12. e4 {[%clk 0:02:41]}  h5 {[%clk 0:02:57]} 13. f3 {[%clk 0:02:34]}  Nh7 {[%clk 0:02:54]} 14. Kf2 {[%clk 0:02:22]}  Qh4+ {[%clk 0:02:45]} 15. Kg2 {[%clk 0:02:19]}  f5 {[%clk 0:02:29]} 16. Qe1 {[%clk 0:01:44]}  Qxe1 {[%clk 0:02:27]} 17. Raxe1 {[%clk 0:01:42]}  fxg4 {[%clk 0:02:24]} 18. hxg4 {[%clk 0:01:34]}  hxg4 {[%clk 0:02:25]} 19. Ref1 {[%clk 0:01:32]}  Ng5 {[%clk 0:02:01]} 20. f4 {[%clk 0:01:17]}  Nh3 {[%clk 0:02:01]} 21. fxe5 {[%clk 0:01:08]}  Bxe5 {[%clk 0:02:00]} 22. a4 {[%clk 0:00:43]}  g5 {[%clk 0:01:46]} 23. Ba3 {[%clk 0:00:37]}  Nf4+ {[%clk 0:01:43]} 24. Nxf4 {[%clk 0:00:36]}  gxf4 {[%clk 0:01:44]} 25. Bxc5 {[%clk 0:00:33]}  f3+ {[%clk 0:01:43]} 26. Kg1 {[%clk 0:00:19]}  Bf4 {[%clk 0:01:21]} 27. Bxd4 {[%clk 0:00:12]}  Bxd2 {[%clk 0:01:16]} 28. Rf2 {[%clk 0:00:11]}  Bf4 {[%clk 0:01:10]} 29. Rh8+ {[%clk 0:00:10]}  Kf7 {[%clk 0:01:10]} 30. Rh7+ {[%clk 0:00:10]}  Ke8 {[%clk 0:01:08]} 31. Bc5 {[%clk 0:00:10]}  Bf7 {[%clk 0:00:24]} 32. Bxf8 {[%clk 0:00:05]}  Kxf8 {[%clk 0:00:25]} 33. Rh4 {[%clk 0:00:05]}  Be6 {[%clk 0:00:18]} 34. Rh8+ {[%clk 0:00:05]}  Bg8 {[%clk 0:00:14]} 35. Rh4 {[%clk 0:00:05]}  Be3 {[%clk 0:00:08]} 36. Rxg4 {[%clk 0:00:05]}  Bxf2+ {[%clk 0:00:08]} 37. Kxf2 {[%clk 0:00:05]}  Ke7 {[%clk 0:00:07]} 38. Kxf3 {[%clk 0:00:05]}  Be6 {[%clk 0:00:07]} 39. Rg7+ {[%clk 0:00:05]}  Kd6 {[%clk 0:00:06]} 40. Ke3 {[%clk 0:00:05]}  Bd7 {[%clk 0:00:05]} 41. d4 {[%clk 0:00:05]}  Re8 {[%clk 0:00:03]} 42. Kd3 {[%clk 0:00:04]}  a6 {[%clk 0:00:03]} 43. c4 {[%clk 0:00:04]}  Kc7 {[%clk 0:00:03]} 44. e5 {[%clk 0:00:03]}  Kc8 {[%clk 0:00:02]} 45. Rg5 {[%clk 0:00:03]}  Rh8 {[%clk 0:00:03]} 46. d5 {[%clk 0:00:04]}  cxd5 {[%clk 0:00:03]} 47. cxd5 {[%clk 0:00:04]}  Bh3 {[%clk 0:00:03]} 48. Kd4 {[%clk 0:00:03]}  Kb7 {[%clk 0:00:03]} 49. Rg7+ {[%clk 0:00:03]}  Kb6 {[%clk 0:00:03]} 50. Rg6+ {[%clk 0:00:03]}  Ka5 {[%clk 0:00:04]} 51. Kc5 {[%clk 0:00:03]}  Rb8 {[%clk 0:00:04]} 52. b4+ {[%clk 0:00:01]}  Kxa4 {[%clk 0:00:02]} 53. Rxa6+ {[%clk 0:00:01]}  Kb3 {[%clk 0:00:02]} 54. Rb6 {[%clk 0:00:02]}  Rc8+ {[%clk 0:00:02]} 55. Rc6 {[%clk 0:00:02]}  Re8 {[%clk 0:00:03]} 56. e6 {[%clk 0:00:02]}  Bg2 {[%clk 0:00:03]} 57. b5 {[%clk 0:00:02]}  Rd8 {[%clk 0:00:04]} 58. d6 {[%clk 0:00:03]}  Bh3 {[%clk 0:00:01]} 59. e7 {[%clk 0:00:03]}  Re8 {[%clk 0:00:02]} 60. Rc7 {[%clk 0:00:03]}  Ka4 {[%clk 0:00:02]} 61. b6 {[%clk 0:00:04]}  Ka5 {[%clk 0:00:02]} 62. Ra7# {[%clk 0:00:04]} 1-0


[Site "https://www.chess.com"]

[Event "Early Titled Tuesday Blitz | February 8 2022"]
[White "Howell, David W L"]
[Black "Guliyev, Namig"]
[WhiteFideId "410608"]
[BlackFideId "13400363"]
[WhiteElo "2559"]
[BlackElo "2487"]
[Result "0-1"]
[Round "05"]
[TimeControl "180+1"]
[Date "2022.02.08"]
[WhiteClock "0:01:05"]
[BlackClock "0:00:13"]

1. e4 {[%clk 0:03:00]}  e5 {[%clk 0:03:00]} 2. Bc4 {[%clk 0:02:50]}  Nf6 {[%clk 0:02:59]} 3. d3 {[%clk 0:02:49]}  c6 {[%clk 0:03:00]} 4. Nf3 {[%clk 0:02:49]}  d5 {[%clk 0:03:00]} 5. Bb3 {[%clk 0:02:49]}  Bb4+ {[%clk 0:03:00]} 6. Bd2 {[%clk 0:02:47]}  Bxd2+ {[%clk 0:02:58]} 7. Qxd2 {[%clk 0:02:34]}  O-O {[%clk 0:02:41]} 8. Nxe5 {[%clk 0:02:30]}  Qe7 {[%clk 0:02:38]} 9. f4 {[%clk 0:02:28]}  dxe4 {[%clk 0:02:36]} 10. d4 {[%clk 0:02:24]}  Be6 {[%clk 0:02:29]} 11. Nc3 {[%clk 0:02:21]}  Nbd7 {[%clk 0:02:06]} 12. O-O-O {[%clk 0:02:19]}  Bxb3 {[%clk 0:02:05]} 13. axb3 {[%clk 0:02:19]}  a5 {[%clk 0:01:34]} 14. Rhe1 {[%clk 0:02:07]}  Nb6 {[%clk 0:01:34]} 15. Na4 {[%clk 0:01:58]}  Nxa4 {[%clk 0:01:32]} 16. bxa4 {[%clk 0:01:59]}  Rfd8 {[%clk 0:01:30]} 17. g4 {[%clk 0:01:52]}  Ne8 {[%clk 0:01:16]} 18. g5 {[%clk 0:01:48]}  Nd6 {[%clk 0:01:15]} 19. c4 {[%clk 0:01:46]}  f6 {[%clk 0:01:08]} 20. gxf6 {[%clk 0:01:45]}  gxf6 {[%clk 0:01:08]} 21. Qg2+ {[%clk 0:01:35]}  Kh8 {[%clk 0:01:07]} 22. c5 {[%clk 0:01:35]}  fxe5 {[%clk 0:00:40]} 23. cxd6 {[%clk 0:01:33]}  Qxd6 {[%clk 0:00:37]} 24. dxe5 {[%clk 0:01:22]}  Qc5+ {[%clk 0:00:19]} 25. Qc2 {[%clk 0:01:20]}  Rxd1+ {[%clk 0:00:16]} 26. Rxd1 {[%clk 0:01:21]}  Qe3+ {[%clk 0:00:16]} 27. Qd2 {[%clk 0:01:19]}  Qc5+ {[%clk 0:00:16]} 28. Qc2 {[%clk 0:01:15]}  Qe3+ {[%clk 0:00:16]} 29. Qd2 {[%clk 0:01:14]}  Qc5+ {[%clk 0:00:16]} 30. Kb1 {[%clk 0:01:14]}  e3 {[%clk 0:00:14]} 31. Qd3 {[%clk 0:01:09]}  Rf8 {[%clk 0:00:13]} 32. Qxe3 {[%clk 0:01:05]}  Qxe3 {[%clk 0:00:13]} 0-1


[Site "https://www.chess.com"]

[Event "Early Titled Tuesday Blitz | February 8 2022"]
[White "Idrisov, Ildar F"]
[Black "Schut, Han"]
[WhiteFideId "4151020"]
[BlackFideId "1005561"]
[WhiteElo "2209"]
[BlackElo "2057"]
[Result "1-0"]
[Round "05"]
[TimeControl "180+1"]
[Date "2022.02.08"]
[WhiteClock "0:01:06"]
[BlackClock "0:01:34"]

1. Nf3 {[%clk 0:03:00]}  Nf6 {[%clk 0:02:53]} 2. b3 {[%clk 0:03:00]}  g6 {[%clk 0:02:50]} 3. Bb2 {[%clk 0:03:00]}  Bg7 {[%clk 0:02:50]} 4. c4 {[%clk 0:03:01]}  O-O {[%clk 0:02:51]} 5. g3 {[%clk 0:03:01]}  c5 {[%clk 0:02:50]} 6. Bg2 {[%clk 0:03:01]}  Nc6 {[%clk 0:02:50]} 7. O-O {[%clk 0:03:00]}  d5 {[%clk 0:02:51]} 8. cxd5 {[%clk 0:03:00]}  Nxd5 {[%clk 0:02:52]} 9. Bxg7 {[%clk 0:02:59]}  Kxg7 {[%clk 0:02:53]} 10. Qc1 {[%clk 0:02:59]}  e5 {[%clk 0:02:49]} 11. Qxc5 {[%clk 0:02:57]}  Be6 {[%clk 0:02:47]} 12. Nc3 {[%clk 0:02:56]}  Rc8 {[%clk 0:02:46]} 13. Nxd5 {[%clk 0:02:48]}  Nd4 {[%clk 0:02:34]} 14. Qe7 {[%clk 0:02:14]}  Nxe2+ {[%clk 0:02:30]} 15. Kh1 {[%clk 0:02:14]}  Qxd5 {[%clk 0:02:29]} 16. Ng5 {[%clk 0:02:09]}  Qd7 {[%clk 0:02:10]} 17. Nxe6+ {[%clk 0:02:04]}  Qxe6 {[%clk 0:02:10]} 18. Qxe6 {[%clk 0:01:55]}  fxe6 {[%clk 0:02:11]} 19. Bxb7 {[%clk 0:01:55]}  Rc2 {[%clk 0:02:10]} 20. d3 {[%clk 0:01:52]}  Rd8 {[%clk 0:02:02]} 21. Be4 {[%clk 0:01:47]}  Nc3 {[%clk 0:02:02]} 22. Rac1 {[%clk 0:01:40]}  Rxc1 {[%clk 0:01:50]} 23. Rxc1 {[%clk 0:01:39]}  Nxa2 {[%clk 0:01:49]} 24. Rc7+ {[%clk 0:01:32]}  Kf6 {[%clk 0:01:49]} 25. Rxh7 {[%clk 0:01:31]}  a5 {[%clk 0:01:46]} 26. Ra7 {[%clk 0:01:25]}  Nc1 {[%clk 0:01:44]} 27. Rxa5 {[%clk 0:01:21]}  Nxb3 {[%clk 0:01:44]} 28. Ra8 {[%clk 0:01:08]}  Nc5 {[%clk 0:01:34]} 29. Rxd8 {[%clk 0:01:06]} 1-0


[Site "https://www.chess.com"]

[Event "Early Titled Tuesday Blitz | February 8 2022"]
[White "Indjic, Aleksandar"]
[Black "Barp, Alberto"]
[WhiteFideId "911925"]
[BlackFideId "872555"]
[WhiteElo "2616"]
[BlackElo "2229"]
[Result "0-1"]
[Round "05"]
[TimeControl "180+1"]
[Date "2022.02.08"]
[WhiteClock "0:00:01"]
[BlackClock "0:00:04"]

1. e4 {[%clk 0:03:00]}  c6 {[%clk 0:02:58]} 2. d4 {[%clk 0:02:57]}  d5 {[%clk 0:02:56]} 3. e5 {[%clk 0:02:57]}  Bf5 {[%clk 0:02:56]} 4. h4 {[%clk 0:02:57]}  h5 {[%clk 0:02:55]} 5. Bd3 {[%clk 0:02:58]}  Bxd3 {[%clk 0:02:53]} 6. Qxd3 {[%clk 0:02:59]}  Qa5+ {[%clk 0:02:48]} 7. b4 {[%clk 0:02:58]}  Qa6 {[%clk 0:02:33]} 8. Qb3 {[%clk 0:02:57]}  e6 {[%clk 0:02:31]} 9. Nf3 {[%clk 0:02:55]}  Qb6 {[%clk 0:02:28]} 10. Bd2 {[%clk 0:02:49]}  Ne7 {[%clk 0:02:23]} 11. Nc3 {[%clk 0:02:44]}  Nf5 {[%clk 0:02:22]} 12. Ne2 {[%clk 0:02:44]}  Nd7 {[%clk 0:02:03]} 13. a4 {[%clk 0:02:42]}  a6 {[%clk 0:01:49]} 14. g3 {[%clk 0:02:36]}  Be7 {[%clk 0:01:43]} 15. Kf1 {[%clk 0:02:26]}  Qc7 {[%clk 0:01:36]} 16. a5 {[%clk 0:02:16]}  Nf8 {[%clk 0:01:28]} 17. Nf4 {[%clk 0:02:14]}  Qd7 {[%clk 0:01:21]} 18. Kg2 {[%clk 0:02:12]}  Ng6 {[%clk 0:01:02]} 19. Nd3 {[%clk 0:02:05]}  f6 {[%clk 0:00:58]} 20. Rae1 {[%clk 0:02:03]}  O-O {[%clk 0:00:56]} 21. c3 {[%clk 0:01:54]}  Rae8 {[%clk 0:00:50]} 22. Qd1 {[%clk 0:01:53]}  Bd8 {[%clk 0:00:38]} 23. Qe2 {[%clk 0:01:03]}  Qf7 {[%clk 0:00:37]} 24. Reg1 {[%clk 0:00:50]}  Bc7 {[%clk 0:00:32]} 25. Kf1 {[%clk 0:00:47]}  fxe5 {[%clk 0:00:28]} 26. dxe5 {[%clk 0:00:40]}  Bd8 {[%clk 0:00:25]} 27. Ke1 {[%clk 0:00:36]}  Nh6 {[%clk 0:00:19]} 28. Nd4 {[%clk 0:00:27]}  Ng4 {[%clk 0:00:18]} 29. f3 {[%clk 0:00:26]}  Nh6 {[%clk 0:00:14]} 30. Bxh6 {[%clk 0:00:25]}  gxh6 {[%clk 0:00:15]} 31. f4 {[%clk 0:00:24]}  Bc7 {[%clk 0:00:09]} 32. Qxh5 {[%clk 0:00:23]}  Nxe5 {[%clk 0:00:09]} 33. Qxf7+ {[%clk 0:00:19]}  Nxf7 {[%clk 0:00:09]} 34. Kd2 {[%clk 0:00:16]}  e5 {[%clk 0:00:10]} 35. Nf5 {[%clk 0:00:16]}  e4 {[%clk 0:00:09]} 36. Nc5 {[%clk 0:00:15]}  Ne5 {[%clk 0:00:07]} 37. Nxh6+ {[%clk 0:00:14]}  Kh7 {[%clk 0:00:08]} 38. fxe5 {[%clk 0:00:13]}  Kxh6 {[%clk 0:00:08]} 39. Nxb7 {[%clk 0:00:11]}  Rf2+ {[%clk 0:00:08]} 40. Kc1 {[%clk 0:00:10]}  Bxe5 {[%clk 0:00:07]} 41. Rf1 {[%clk 0:00:08]}  Ref8 {[%clk 0:00:06]} 42. Rxf2 {[%clk 0:00:08]}  Rxf2 {[%clk 0:00:07]} 43. Nd8 {[%clk 0:00:07]}  Bxc3 {[%clk 0:00:07]} 44. Nxc6 {[%clk 0:00:07]}  e3 {[%clk 0:00:07]} 45. b5 {[%clk 0:00:06]}  e2 {[%clk 0:00:05]} 46. Kc2 {[%clk 0:00:01]}  e1=Q+ {[%clk 0:00:04]} 0-1


[Site "https://www.chess.com"]